bitfinex-derivatives/quotes_BTCF0:USTF0_20210111
["timestamp","ask_amount","ask_price","bid_price","bid_amount"]
[1610351192382,1.0,34247.0,34231.0,0.13632608]
[1610351192586,1.0,34247.0,34231.0,0.23201608]
[1610351192782,1.0,34247.0,34232.0,0.0002]
[1610351193381,0.29217504,34312.0,34232.0,0.0002]
[1610351194379,0.13632608,34241.0,34232.0,0.0002]
[1610351195383,0.08039,34254.0,34232.0,0.0002]
[1610351195983,0.58395782,34246.0,34232.0,0.0002]
[1610351196383,0.13632608,34233.0,34232.0,0.0002]
[1610351197085,0.13632608,34233.0,34215.0,0.0002]
[1610351198486,0.13632608,34216.0,34213.0,0.0002]
[1610351198686,0.21229608,34216.0,34213.0,0.0002]
[1610351199387,0.10355,34226.0,34213.0,0.0002]
[1610351200188,4.829,34266.0,34213.0,0.0002]
[1610351200389,4.829,34266.0,34235.0,0.13632608]
[1610351200588,4.829,34266.0,34235.0,0.11312]
[1610351200788,4.829,34266.0,34208.0,0.10983]
[1610351200987,4.9157,34266.0,34208.0,0.10983]
[1610351201188,4.9157,34266.0,34188.0,4.0398]
[1610351201389,1.0,34237.0,34209.0,0.0002]
[1610351201588,1.09871,34237.0,34189.0,0.0002]
[1610351202488,0.13632608,34190.0,34189.0,0.0002]
[1610351202688,4.33682608,34190.0,34110.0,3.5155]
[1610351202891,0.21932608,34190.0,34100.0,1.0]
[1610351203088,4.9005,34189.0,34100.0,1.0]
[1610351203289,4.9005,34189.0,34111.0,0.0002]
[1610351203489,4.9005,34189.0,34111.0,0.10908]
[1610351204089,4.9005,34189.0,34112.0,0.0002]
[1610351204489,0.13632608,34113.0,34112.0,0.0002]
[1610351204890,0.09727,34134.0,34112.0,0.0002]
[1610351205091,0.09727,34134.0,34112.0,1.0002]
[1610351205492,0.09727,34134.0,34113.0,0.0002]
[1610351206490,0.13632608,34114.0,34113.0,0.0002]
[1610351207492,0.09727,34134.0,34112.0,0.0002]
[1610351207892,0.58613391,34118.0,34112.0,0.0002]
[1610351208293,0.58613391,34118.0,34098.0,0.0002]
[1610351208492,0.09727,34134.0,34117.0,0.13632608]
[1610351208893,1.0,34168.0,34133.0,6.0]
[1610351209293,1.0,34168.0,34134.0,0.0002]
[1610351210495,1.0,34168.0,34167.0,0.13632608]
[1610351210895,1.0,34279.0,34167.0,0.13652608]
[1610351211295,0.29324214,34187.0,34167.0,0.20644608]
[1610351211498,0.29324214,34187.0,34168.0,0.0002]
[1610351212296,1.0,34279.0,34168.0,0.0002]
[1610351212496,1.0,34279.0,34227.0,0.13632608]
[1610351212897,0.3179,34342.0,34227.0,0.13632608]
[1610351213096,1.0,34328.0,34218.0,0.10167]
[1610351213299,0.1556,34327.0,34218.0,0.10167]
[1610351213497,0.1556,34327.0,34219.0,0.0002]
[1610351214096,0.1556,34327.0,34210.0,0.0002]
[1610351214298,1.07399,34328.0,34210.0,0.0002]
[1610351214498,0.13632608,34211.0,34210.0,0.0002]
[1610351215099,0.13632608,34211.0,34202.0,0.0002]
[1610351215499,0.22239608,34211.0,34202.0,0.0002]
[1610351216301,0.01339608,34211.0,34168.0,0.0002]
[1610351216502,0.01339608,34211.0,34210.0,0.13632608]
[1610351216701,0.10348,34219.0,34210.0,0.13632608]
[1610351217100,0.10348,34219.0,34210.0,0.13652608]
[1610351217301,0.10348,34219.0,34211.0,0.0002]
[1610351217902,0.10348,34219.0,34202.0,0.0002]
[1610351218103,0.10348,34219.0,34191.0,0.0002]
[1610351218403,0.10348,34219.0,34216.0,0.13632608]
[1610351218802,0.10348,34219.0,34217.0,0.0002]
[1610351219404,0.10348,34219.0,34198.0,0.0002]
[1610351219605,0.10348,34219.0,34191.0,0.0002]
[1610351220507,0.13632608,34192.0,34181.0,0.13632608]
[1610351220708,0.21641608,34192.0,34181.0,0.13632608]
[1610351220908,0.21641608,34192.0,34182.0,0.0002]
[1610351222605,0.13632608,34183.0,34168.0,0.0002]
[1610351223204,0.09838,34185.0,34168.0,0.0002]
[1610351224307,0.08009,34192.0,34168.0,0.0002]
[1610351224604,0.09667,34227.0,34191.0,0.13632608]
[1610351224805,3.6992,34252.0,34191.0,0.13632608]
[1610351225006,4.2765,34220.0,34192.0,0.0002]
[1610351225205,4.35516,34220.0,34192.0,0.0002]
[1610351227009,4.2765,34220.0,34192.0,0.0002]
[1610351227211,4.37786,34220.0,34176.0,1.0]
[1610351227409,4.37786,34220.0,34177.0,0.0002]
[1610351227608,4.37786,34220.0,34177.0,0.09211]
[1610351227910,4.37786,34220.0,34178.0,0.0002]
[1610351228111,0.10136,34220.0,34178.0,0.0002]
[1610351228312,0.08372,34237.0,34196.0,1.0]
[1610351228711,0.13632608,34224.0,34197.0,0.0002]
[1610351229312,0.07665,34229.0,34197.0,0.0002]
[1610351230611,0.13632608,34198.0,34197.0,0.0002]
[1610351230812,0.13632608,34198.0,34196.0,0.0002]
[1610351231114,0.1066,34213.0,34196.0,0.0002]
[1610351232214,0.05797,34237.0,34196.0,0.0002]
[1610351232414,1.0,34239.0,34212.0,1.0]
[1610351232615,0.13632608,34215.0,34212.0,1.0]
[1610351232815,1.0,34239.0,34212.0,1.0]
[1610351233014,0.09941,34224.0,34213.0,0.0002]
[1610351234817,0.13632608,34214.0,34206.0,0.0002]
[1610351236217,0.13632608,34214.0,34196.0,0.0002]
[1610351236618,0.13632608,34203.0,34196.0,0.0002]
[1610351238423,1.0,34197.0,34196.0,0.0002]
[1610351238621,1.0,34197.0,34178.0,0.0002]
[1610351238821,0.13632608,34179.0,34178.0,0.0002]
[1610351239022,1.0,34197.0,34178.0,0.0002]
[1610351240323,0.10507,34217.0,34178.0,0.0002]
[1610351240724,0.13632608,34201.0,34198.0,0.13632608]
[1610351240924,0.10507,34217.0,34198.0,0.13632608]
[1610351241325,0.1556,34266.0,34199.0,0.0002]
[1610351242224,0.1556,34266.0,34195.0,0.0002]
[1610351242425,1.0,34264.0,34195.0,0.0002]
[1610351242824,1.0,34264.0,34188.0,0.0002]
[1610351244428,0.13632608,34208.0,34188.0,0.0002]
[1610351246331,0.10336,34216.0,34202.0,0.13632608]
[1610351246534,3.39076,34226.0,34202.0,0.13632608]
[1610351246732,3.39076,34226.0,34203.0,0.0002]
[1610351248433,0.13632608,34206.0,34203.0,0.0002]
[1610351249233,0.13632608,34206.0,34196.0,0.0002]
[1610351249633,0.07886,34214.0,34196.0,0.0002]
[1610351249832,0.09752,34221.0,34196.0,0.0002]
[1610351250234,4.5075,34257.0,34196.0,0.0002]
[1610351250433,4.5075,34257.0,34249.0,0.13632608]
[1610351251136,4.5075,34257.0,34214.0,0.09906]
[1610351251339,4.60977,34257.0,34214.0,0.09906]
[1610351251542,4.60977,34257.0,34215.0,0.0002]
[1610351251834,0.10227,34257.0,34215.0,0.0002]
[1610351252436,0.13632608,34253.0,34215.0,0.0002]
[1610351252837,0.10227,34257.0,34215.0,0.0002]
[1610351254338,0.10227,34257.0,34256.0,0.13632608]
[1610351254639,0.09522,34266.0,34256.0,0.13632608]
[1610351254838,4.2115,34300.0,34256.0,0.13652608]
[1610351255037,4.2115,34300.0,34257.0,0.0002]
[1610351256439,4.2115,34300.0,34292.0,0.13632608]
[1610351256641,4.2115,34300.0,34289.0,1.0]
[1610351257039,4.30902,34300.0,34289.0,1.0]
[1610351258440,0.13632608,34290.0,34266.0,0.13632608]
[1610351258841,0.22252608,34290.0,34266.0,0.13632608]
[1610351259042,0.22252608,34290.0,34267.0,0.0002]
[1610351259844,0.22252608,34290.0,34249.0,0.0002]
[1610351260445,1.0,34258.0,34249.0,0.0002]
[1610351261044,1.0,34258.0,34245.0,0.0002]
[1610351261344,1.0,34258.0,34242.0,0.0002]
[1610351262346,0.95132608,34249.0,34242.0,0.0002]
[1610351262546,0.86599608,34249.0,34242.0,0.0002]
[1610351262747,0.11067,34249.0,34232.0,0.0002]
[1610351263347,0.11067,34249.0,34223.0,0.0002]
[1610351263548,0.11254,34271.0,34222.0,0.13632608]
[1610351263750,0.11254,34271.0,34222.0,0.22635608]
[1610351263949,0.11254,34271.0,34223.0,0.0002]
[1610351264451,0.11254,34271.0,34270.0,0.13632608]
[1610351264649,0.07426,34300.0,34270.0,0.13632608]
[1610351264848,0.4735,34380.0,34270.0,0.13632608]
[1610351265049,1.0,34329.0,34257.0,0.10503]
[1610351265249,1.10006,34329.0,34257.0,0.10503]
[1610351266350,1.10006,34329.0,34299.0,0.13632608]
[1610351266954,1.0,34309.0,34299.0,0.13632608]
[1610351267151,1.10164,34309.0,34292.0,1.0]
[1610351268454,0.13632608,34293.0,34292.0,1.0]
[1610351268653,0.22366608,34293.0,34292.0,1.0]
[1610351269055,0.22366608,34293.0,34257.0,0.10503]
[1610351269457,0.22366608,34293.0,34258.0,0.0002]
[1610351269657,0.08734,34293.0,34258.0,0.0002]
[1610351270455,0.08734,34293.0,34292.0,0.13632608]
[1610351270855,0.08734,34293.0,34292.0,0.13652608]
[1610351271256,0.10164,34309.0,34292.0,0.13652608]
[1610351271658,0.10164,34309.0,34293.0,0.0002]
[1610351272059,0.10006,34329.0,34293.0,0.0002]
[1610351272458,4.1827,34350.0,34305.0,0.13632608]
[1610351272657,0.29166016,34372.0,34305.0,0.13632608]
[1610351272859,0.1556,34380.0,34291.0,0.09445]
[1610351273359,0.1556,34380.0,34292.0,0.0002]
[1610351274364,0.1556,34380.0,34319.0,0.13632608]
[1610351274964,0.1556,34380.0,34291.0,0.09445]
[1610351275167,0.22444,34380.0,34291.0,0.09445]
[1610351275365,0.22444,34380.0,34292.0,0.0002]
[1610351276468,0.22444,34380.0,34293.0,3.7466]
[1610351276870,0.22444,34380.0,34294.0,0.0002]
[1610351278472,0.13632608,34295.0,34294.0,0.0002]
[1610351280172,0.04580608,34303.0,34294.0,0.0002]
[1610351280372,0.13632608,34295.0,34294.0,0.0002]
[1610351281673,0.24396608,34295.0,34243.0,0.2883]
[1610351282274,0.24396608,34295.0,34265.0,0.0002]
[1610351282475,0.13632608,34266.0,34260.0,0.09312]
[1610351283074,0.20649608,34266.0,34261.0,0.0002]
[1610351283474,0.20649608,34266.0,34239.0,3.6483]
[1610351284074,0.20649608,34266.0,34240.0,0.0002]
[1610351284474,0.13632608,34241.0,34240.0,0.0002]
[1610351284676,0.24630608,34241.0,34240.0,0.0002]
[1610351284874,0.24630608,34241.0,34239.0,3.6483]
[1610351285076,6.24630608,34241.0,34212.0,0.09789]
[1610351285776,6.24630608,34241.0,34213.0,0.0002]
[1610351286376,0.13632608,34214.0,34213.0,0.0002]
[1610351286977,1.13632608,34214.0,34213.0,0.0002]
[1610351287578,1.0,34214.0,34213.0,0.0002]
[1610351288479,1.0,34214.0,34213.0,0.13652608]
[1610351289081,4.1757,34238.0,34213.0,0.13652608]
[1610351289282,0.07564,34253.0,34213.0,0.13652608]
[1610351289684,0.07564,34253.0,34214.0,0.0002]
[1610351290084,0.2917,34294.0,34214.0,0.0002]
[1610351290486,0.2917,34294.0,34244.0,0.13632608]
[1610351290886,0.10764,34295.0,34245.0,0.0002]
[1610351291087,1.0,34266.0,34249.0,1.0]
[1610351291287,1.07033,34266.0,34249.0,1.0]
[1610351291487,1.07033,34266.0,34250.0,0.0002]
[1610351292587,0.13632608,34251.0,34250.0,0.0002]
[1610351292788,0.13632608,34251.0,34249.0,1.0]
[1610351292988,0.13632608,34251.0,34242.0,0.09198]
[1610351293188,0.22252608,34251.0,34150.0,1.0]
[1610351293388,0.22252608,34251.0,34160.0,0.2725]
[1610351293588,0.22252608,34251.0,34213.0,0.0002]
[1610351294190,0.22252608,34251.0,34209.0,0.0002]
[1610351294490,0.13632608,34210.0,34209.0,0.0002]
[1610351294692,0.0745,34231.0,34209.0,0.0002]
[1610351295089,1.0,34229.0,34209.0,1.0002]
[1610351295490,1.0,34229.0,34210.0,0.0002]
[1610351296489,1.0,34229.0,34227.0,0.13632608]
[1610351296690,1.0,34229.0,34220.0,0.10602]
[1610351297090,0.13632608,34239.0,34221.0,0.0002]
[1610351297593,0.07225,34243.0,34221.0,0.0002]
[1610351297792,1.2757,34286.0,34221.0,0.0002]
[1610351297990,1.0,34286.0,34221.0,0.0002]
[1610351298393,0.29240477,34285.0,34221.0,0.0002]
[1610351298592,0.13632608,34272.0,34257.0,0.13632608]
[1610351298996,0.13632608,34272.0,34258.0,0.0002]
[1610351299997,0.13632608,34272.0,34246.0,0.0002]
[1610351300396,0.0885,34258.0,34247.0,0.0886]
[1610351300595,0.13632608,34252.0,34248.0,0.0887]
[1610351300795,0.0887,34251.0,34248.0,0.0889]
[1610351300995,1.0,34249.0,34248.0,0.0887]
[1610351301595,1.0,34249.0,34248.0,0.0889]
[1610351301795,0.9713,34249.0,34248.0,0.0889]
[1610351301994,0.0226,34251.0,34248.0,0.0889]
[1610351302195,1.0839,34264.0,34248.0,0.0889]
[1610351302395,1.043,34272.0,34249.0,0.0002]
[1610351302598,0.09272608,34265.0,34249.0,0.0002]
[1610351302796,0.08302608,34265.0,34249.0,0.0002]
[1610351302995,0.04460608,34274.0,34249.0,0.0002]
[1610351303196,0.03970608,34274.0,34249.0,0.0002]
[1610351303398,3.81150608,34287.0,34249.0,0.0002]
[1610351303595,3.7133,34304.0,34249.0,0.0002]
[1610351304195,0.0865,34303.0,34249.0,0.0002]
[1610351304596,0.13632608,34250.0,34249.0,0.0002]
[1610351305198,0.06392608,34250.0,34249.0,0.0002]
[1610351305397,0.06090608,34262.0,34249.0,0.0002]
[1610351305596,3.5218,34283.0,34249.0,0.0002]
[1610351305998,3.5218,34283.0,34248.0,0.0887]
[1610351306197,3.61671,34283.0,34249.0,0.0002]
[1610351306397,4.5174,34280.0,34249.0,0.0002]
[1610351306597,0.13632608,34250.0,34249.0,0.0002]
[1610351306998,0.04038,34262.0,34249.0,0.0002]
[1610351307198,4.5174,34280.0,34249.0,0.0002]
[1610351307397,4.5174,34280.0,34248.0,0.0887]
[1610351308598,0.13632608,34249.0,34248.0,0.0887]
[1610351308797,0.23626608,34249.0,34239.0,0.0867]
[1610351308999,4.5174,34280.0,34239.0,0.0867]
[1610351309199,0.11041,34249.0,34148.0,1.0]
[1610351309399,0.11041,34249.0,34209.0,0.2951]
[1610351310502,0.13632608,34232.0,34209.0,0.2951]
[1610351310701,6.13632608,34232.0,34209.0,0.2951]
[1610351310901,6.13632608,34232.0,34194.0,1.0]
[1610351311502,6.13632608,34232.0,34224.0,0.0865]
[1610351311702,6.13632608,34232.0,34211.0,0.0886]
[1610351312202,6.13632608,34232.0,34212.0,0.0002]
[1610351312604,0.13632608,34213.0,34212.0,0.0002]
[1610351313207,0.13632608,34213.0,34211.0,0.0886]
[1610351313405,0.07012,34239.0,34211.0,0.0886]
[1610351313806,0.00453,34249.0,34211.0,0.0886]
[1610351314206,0.29268361,34252.0,34211.0,0.0886]
[1610351314606,1.0,34212.0,34211.0,0.22492608]
[1610351314806,1.0,34212.0,34211.0,0.13632608]
[1610351315006,0.7955,34212.0,34211.0,0.13632608]
[1610351315207,0.5708,34212.0,34211.0,0.13632608]
[1610351315407,0.08826,34242.0,34211.0,0.13652608]
[1610351315812,0.04626,34242.0,34212.0,0.0866]
[1610351316011,0.04626,34242.0,34212.0,0.0868]
[1610351316210,4.9081,34256.0,34213.0,0.0002]
[1610351316610,0.13632608,34247.0,34231.0,0.13632608]
[1610351316810,0.13632608,34247.0,34232.0,0.0877]
[1610351317010,2.608e-05,34247.0,34232.0,0.0877]
[1610351317212,1.0,34275.0,34232.0,0.0877]
[1610351317413,0.29256043,34266.0,34232.0,0.0877]
[1610351317611,0.39763043,34266.0,34232.0,0.0877]
[1610351317810,0.9977,34247.0,34232.0,0.0877]
[1610351318014,0.4617,34247.0,34232.0,0.0877]
[1610351318212,0.09527,34266.0,34232.0,0.0877]
[1610351318414,0.08567,34266.0,34232.0,0.0877]
[1610351318614,0.01907,34266.0,34232.0,0.0877]
[1610351319011,0.01907,34266.0,34233.0,0.0002]
[1610351319412,4.35657,34266.0,34232.0,0.0877]
[1610351320614,4.35657,34266.0,34236.0,0.13632608]
[1610351321214,4.33747,34266.0,34236.0,0.13632608]
[1610351321415,4.33747,34266.0,34236.0,0.20587608]
[1610351321816,1.0,34290.0,34236.0,0.20587608]
[1610351322417,1.0,34259.0,34242.0,1.0]
[1610351322620,1.0,34259.0,34258.0,0.13632608]
[1610351322818,0.9552,34259.0,34258.0,0.13632608]
[1610351323017,0.9552,34259.0,34245.0,0.09966]
[1610351323218,0.9427,34259.0,34245.0,0.09966]
[1610351323418,0.9367,34259.0,34245.0,0.09966]
[1610351323620,1.0,34252.0,34245.0,0.09966]
[1610351323821,0.07424,34261.0,34245.0,0.09966]
[1610351324022,0.07424,34261.0,34243.0,0.1739]
[1610351324222,0.9953,34252.0,34243.0,0.1739]
[1610351324421,0.07424,34261.0,34243.0,0.1739]
[1610351324622,1.0,34256.0,34247.0,0.13632608]
[1610351324822,1.0,34256.0,34248.0,0.0863]
[1610351325223,1.0,34256.0,34248.0,0.18663]
[1610351325422,0.9267,34256.0,34248.0,0.18663]
[1610351325624,0.634,34256.0,34248.0,0.18663]
[1610351325823,0.9136,34279.0,34255.0,1.0]
[1610351326022,0.2934,34302.0,34256.0,0.0883]
[1610351326225,3.81688519,34327.0,34256.0,0.0883]
[1610351326422,0.1556,34318.0,34256.0,0.0883]
[1610351326722,0.01742608,34284.0,34282.0,0.13632608]
[1610351326923,0.12398608,34284.0,34282.0,0.13632608]
[1610351327523,0.07798608,34284.0,34282.0,0.13632608]
[1610351327924,0.06358608,34284.0,34282.0,0.13632608]
[1610351328525,0.00488608,34284.0,34282.0,0.13632608]
[1610351328727,0.99008608,34287.0,34277.0,0.0872]
[1610351328926,0.13632608,34288.0,34277.0,0.0872]
[1610351329125,3.8304,34313.0,34277.0,0.0872]
[1610351329326,1.0,34278.0,34277.0,0.0872]
[1610351329726,1.0,34278.0,34271.0,0.0865]
[1610351330528,0.13632608,34272.0,34271.0,0.0865]
[1610351330728,0.23297608,34272.0,34267.0,0.0884]
[1610351331532,0.22547608,34272.0,34267.0,0.0884]
[1610351331731,0.09665,34272.0,34267.0,0.0884]
[1610351332332,0.09665,34272.0,34263.0,0.13632608]
[1610351332532,0.09665,34272.0,34268.0,0.13632608]
[1610351332731,0.03255,34272.0,34268.0,0.13632608]
[1610351332932,5e-05,34272.0,34268.0,0.13632608]
[1610351333533,5e-05,34272.0,34243.0,0.1739]
[1610351334134,0.0644,34273.0,34243.0,0.1739]
[1610351334334,0.0154,34273.0,34243.0,0.1739]
[1610351334534,0.13632608,34277.0,34243.0,0.1739]
[1610351334734,0.087,34279.0,34258.0,0.13632608]
[1610351335134,0.09076,34283.0,34258.0,0.13632608]
[1610351335335,1.0,34314.0,34243.0,0.1739]
[1610351335536,1.0,34314.0,34248.0,0.10033]
[1610351335736,1.0,34314.0,34243.0,0.1739]
[1610351335936,3.90941,34313.0,34243.0,0.1739]
[1610351336138,3.90941,34313.0,34233.0,0.2767]
[1610351336337,4.6602,34283.0,34233.0,0.2767]
[1610351336540,4.76984,34283.0,34239.0,0.13632608]
[1610351337138,4.76984,34283.0,34240.0,0.0876]
[1610351337339,1.0,34255.0,34240.0,0.0876]
[1610351337938,0.888,34255.0,34240.0,0.0876]
[1610351338138,0.8369,34255.0,34240.0,0.0876]
[1610351338440,1.09962,34271.0,34254.0,1.0]
[1610351338638,1.01112,34271.0,34270.0,0.13632608]
[1610351338841,0.73282,34271.0,34270.0,0.13632608]
[1610351339041,0.10964,34283.0,34270.0,0.13632608]
[1610351339439,0.06274,34283.0,34270.0,0.13632608]
[1610351339639,4e-05,34283.0,34270.0,0.13632608]
[1610351340239,4e-05,34283.0,34259.0,0.10016]
[1610351340638,0.13632608,34277.0,34262.0,0.13632608]
[1610351341238,1.0,34263.0,34262.0,0.13632608]
[1610351341843,0.9272,34263.0,34262.0,0.13632608]
[1610351342040,0.8413,34263.0,34259.0,0.10016]
[1610351342242,1.0,34263.0,34259.0,0.10016]
[1610351342442,0.8542,34263.0,34259.0,0.10016]
[1610351342643,0.13632608,34260.0,34259.0,0.10016]
[1610351343243,0.13632608,34260.0,34249.0,0.0861]
[1610351343443,0.20543608,34260.0,34231.0,0.09151]
[1610351343842,0.20543608,34260.0,34227.0,0.0881]
[1610351344645,0.13632608,34228.0,34227.0,0.0881]
[1610351344845,1.13632608,34228.0,34223.0,0.0882]
[1610351345446,1.13632608,34228.0,34215.0,0.0882]
[1610351345646,1.13632608,34228.0,34211.0,0.087]
[1610351346047,1.13632608,34228.0,34205.0,1.0]
[1610351346647,0.13632608,34206.0,34199.0,0.0873]
[1610351346950,0.13632608,34206.0,34189.0,0.0887]
[1610351347148,0.10492608,34206.0,34189.0,0.0887]
[1610351347549,0.10492608,34206.0,34190.0,0.0002]
[1610351347750,0.06342608,34206.0,34189.0,0.0887]
[1610351348050,0.2847,34250.0,34190.0,0.09865]
[1610351348648,0.29290056,34227.0,34190.0,0.09865]
[1610351349048,1.0,34242.0,34190.0,0.09865]
[1610351349850,1.0,34242.0,34191.0,0.0002]
[1610351350651,0.29277443,34241.0,34196.0,0.13632608]
[1610351350852,4.829,34204.0,34196.0,0.13632608]
[1610351351052,3.86593308,34241.0,34196.0,0.22372608]
[1610351351252,3.86593308,34241.0,34196.0,0.13632608]
[1610351351453,3.86593308,34241.0,34190.0,0.09865]
[1610351352057,3.95383308,34241.0,34190.0,0.09865]
[1610351352455,3.86593308,34241.0,34191.0,0.0882]
[1610351352656,0.13632608,34192.0,34191.0,0.0882]
[1610351352857,0.13632608,34192.0,34190.0,0.09865]
[1610351353058,3.86593308,34241.0,34160.0,0.2994]
[1610351353257,3.86593308,34241.0,34174.0,0.38442]
[1610351353458,3.86593308,34241.0,34174.0,0.09882]
[1610351353659,3.86593308,34241.0,34175.0,0.0002]
[1610351353860,3.86593308,34241.0,34174.0,0.09882]
[1610351354062,1.5,34240.0,34174.0,0.09882]
[1610351354761,0.13632608,34175.0,34174.0,0.09882]
[1610351354960,0.29302717,34212.0,34174.0,0.09882]
[1610351355761,1.0,34216.0,34175.0,0.0869]
[1610351355962,4.8724,34194.0,34175.0,0.0869]
[1610351356363,3.40005,34194.0,34175.0,0.0869]
[1610351356563,2.7649,34194.0,34175.0,0.0869]
[1610351356764,0.13632608,34176.0,34175.0,0.0869]
[1610351356963,2.7649,34194.0,34175.0,0.0869]
[1610351357167,1.0,34219.0,34174.0,0.09882]
[1610351357563,0.29318789,34193.0,34174.0,0.09882]
[1610351358166,1.0,34219.0,34174.0,0.09882]
[1610351358364,1.0,34219.0,34083.0,1.0]
[1610351358564,1.0,34219.0,34140.0,0.3774]
[1610351358764,0.13632608,34160.0,34157.0,0.13632608]
[1610351358964,1.0,34210.0,34158.0,0.0869]
[1610351359163,1.0,34210.0,34158.0,0.17197]
[1610351359564,1.0,34210.0,34158.0,0.08507]
[1610351359767,0.29332199,34177.0,34158.0,0.08507]
[1610351360165,1.0,34210.0,34158.0,0.08507]
[1610351360765,5.0,34170.0,34164.0,0.13632608]
[1610351360965,3.38653,34170.0,34164.0,0.13632608]
[1610351361164,3.8494473,34223.0,34164.0,0.13632608]
[1610351361364,1.0,34220.0,34164.0,0.13632608]
[1610351361766,4.227,34216.0,34164.0,0.13632608]
[1610351362565,0.29304905,34209.0,34162.0,0.0888]
[1610351362968,0.26844905,34209.0,34162.0,0.0888]
[1610351363167,4.227,34216.0,34208.0,0.13632608]
[1610351363570,4.227,34216.0,34208.0,0.24416608]
[1610351364972,0.6673,34212.0,34208.0,0.24416608]
[1610351365170,1.13632608,34209.0,34208.0,0.10784]
[1610351368171,1.0,34209.0,34208.0,0.10784]
[1610351368573,0.969,34209.0,34208.0,0.10784]
[1610351368775,3.4845,34212.0,34196.0,0.13632608]
[1610351369174,3.4845,34212.0,34196.0,0.09679]
[1610351370374,3.80939921,34258.0,34196.0,0.09679]
[1610351370776,0.29291669,34225.0,34196.0,0.09679]
[1610351370976,0.29291669,34225.0,34207.0,1.0]
[1610351370977,1.0,34224.0,34207.0,1.0]
[1610351371178,0.13632608,34222.0,34207.0,1.0]
[1610351372878,0.13632608,34222.0,34196.0,0.09679]
[1610351373077,0.29291025,34226.0,34205.0,0.13632608]
[1610351373278,0.0912,34256.0,34205.0,0.09614]
[1610351374881,0.29300333,34215.0,34205.0,0.09614]
[1610351375082,0.13632608,34206.0,34205.0,0.09614]
[1610351375680,4.44010333,34215.0,34205.0,0.09614]
[1610351376280,4.1471,34215.0,34205.0,0.09614]
[1610351377080,0.13632608,34206.0,34205.0,0.09614]
[1610351377480,4.1471,34215.0,34205.0,0.09614]
[1610351378281,4.1471,34215.0,34196.0,0.09679]
[1610351378481,4.1471,34215.0,34174.0,4.239]
[1610351378881,4.1471,34215.0,34214.0,1.0]
[1610351379083,4.1471,34215.0,34214.0,1.22947608]
[1610351379283,1.0,34234.0,34214.0,1.22947608]
[1610351379482,0.804,34234.0,34214.0,1.22947608]
[1610351379683,0.595,34234.0,34214.0,1.22947608]
[1610351379883,3.80169164,34280.0,34214.0,0.22947608]
[1610351380082,4.08239164,34280.0,34214.0,0.22947608]
[1610351380482,0.29272179,34248.0,34214.0,0.22947608]
[1610351380884,0.08038,34283.0,34214.0,0.22947608]
[1610351381085,0.08038,34283.0,34246.0,0.13632608]
[1610351381086,0.13632608,34259.0,34246.0,0.13632608]
[1610351381686,0.13632608,34259.0,34214.0,0.09315]
[1610351381887,1.0,34247.0,34215.0,1.0]
[1610351383190,0.13632608,34231.0,34215.0,1.0]
[1610351383992,1.0,34216.0,34214.0,0.09315]
[1610351384192,1.0,34216.0,34193.0,1.0]
[1610351384494,4.5966,34215.0,34193.0,1.0]
[1610351385293,0.13632608,34194.0,34193.0,1.0]
[1610351385895,0.13632608,34194.0,34175.0,4.515]
[1610351385896,1.13632608,34194.0,34175.0,4.515]
[1610351387295,0.13632608,34178.0,34175.0,4.515]
[1610351387594,1.0,34194.0,34175.0,4.515]
[1610351387795,1.0,34194.0,34175.0,4.62233]
[1610351387998,1.0,34185.0,34175.0,4.62233]
[1610351388995,0.48144,34185.0,34175.0,4.62233]
[1610351389196,0.27239,34185.0,34184.0,0.13632608]
[1610351389398,1.13632608,34212.0,34184.0,1.32675608]
[1610351389796,1.13632608,34212.0,34184.0,1.23855608]
[1610351390797,1.13632608,34212.0,34185.0,0.0889]
[1610351390997,1.13632608,34212.0,34184.0,1.23855608]
[1610351391196,1.13632608,34212.0,34211.0,0.13632608]
[1610351391397,0.13632608,34212.0,34211.0,0.11153]
[1610351395702,3.82759751,34236.0,34211.0,0.11153]
[1610351396302,3.9138,34212.0,34211.0,0.11153]
[1610351396501,3.9138,34212.0,34206.0,0.13632608]
[1610351397204,3.9138,34212.0,34211.0,0.13632608]
[1610351397605,3.9138,34212.0,34211.0,0.21656608]
[1610351400408,3.9138,34212.0,34211.0,0.08024]
[1610351401210,4.05012608,34212.0,34211.0,0.08024]
[1610351401408,3.9138,34212.0,34211.0,0.08024]
[1610351402810,3.9138,34212.0,34204.0,0.13632608]
[1610351403213,3.9138,34212.0,34210.0,0.13632608]
[1610351403411,3.9138,34212.0,34210.0,0.07377]
[1610351404214,3.2897,34212.0,34210.0,0.07377]
[1610351405213,3.2897,34212.0,34211.0,0.13632608]
[1610351406616,3.2161,34212.0,34211.0,0.13632608]
[1610351406817,3.88437677,34229.0,34211.0,0.13632608]
[1610351407017,3.8840444,34233.0,34211.0,0.13632608]
[1610351407217,3.8739444,34233.0,34232.0,0.13632608]
[1610351407417,3.4134444,34233.0,34232.0,1.13632608]
[1610351407618,0.29281131,34237.0,34232.0,1.13632608]
[1610351407818,4.06040787,34256.0,34232.0,1.13632608]
[1610351408218,3.91940787,34256.0,34232.0,1.13632608]
[1610351408824,1.0,34260.0,34232.0,1.13632608]
[1610351409021,1.0,34260.0,34232.0,1.22472608]
[1610351409222,1.0,34260.0,34259.0,0.13632608]
[1610351409422,1.10235,34263.0,34259.0,0.13632608]
[1610351411222,0.13632608,34260.0,34259.0,0.13632608]
[1610351412623,0.10235,34263.0,34259.0,0.13632608]
[1610351413125,4.5947,34273.0,34259.0,0.13632608]
[1610351413326,0.13632608,34264.0,34259.0,0.13632608]
[1610351413526,0.21806608,34264.0,34259.0,0.13632608]
[1610351413727,0.00035702,34263.0,34259.0,0.13632608]